bitfinex-derivatives/quotes_ETHF0:USTF0_20240904
["timestamp","ask_amount","ask_price","bid_price","bid_amount"]
[1725433049275,1.21,2379.7,2379.4,3.5838]
[1725433049477,0.42031,2379.5,2379.4,3.2078]
[1725433050076,0.42031,2379.6,2379.4,3.2078]
[1725433050380,2.91629974,2379.8,2379.3,1.18373974]
[1725433050381,0.42031,2379.5,2379.3,1.18373974]
[1725433050585,2.91629974,2379.8,2379.3,0.76339974]
[1725433050787,0.42029,2379.7,2379.5,0.42031]
[1725433051082,0.4203,2379.6,2379.4,0.42032]
[1725433053177,0.42029,2379.7,2379.5,0.4203]
[1725433053578,0.42656974,2379.8,2379.5,0.4203]
[1725433054076,0.42657974,2379.8,2379.6,0.4203]
[1725433054285,0.42657974,2379.8,2379.3,3.97119974]
[1725433054286,0.42655974,2379.8,2379.7,0.3628]
[1725433054979,0.00629974,2379.8,2379.7,0.3628]
[1725433055181,0.42655974,2379.8,2379.7,0.3628]
[1725433056281,0.00629974,2379.8,2379.4,0.42033]
[1725433056482,1.05698974,2379.8,2379.4,0.3771]
[1725433056685,0.42031,2379.5,2379.4,0.3771]
[1725433057075,0.42033,2379.4,2379.3,0.37719974]
[1725433057579,0.77663,2379.5,2379.3,0.37719974]
[1725433058972,0.42029,2379.7,2379.4,0.42032]
[1725433059171,1.19699,2379.7,2379.4,0.78572]
[1725433059381,0.4203,2379.6,2379.4,0.3654]
[1725433059579,0.42031,2379.5,2379.4,0.3654]
[1725433060381,0.42033,2379.4,2379.3,0.37719974]
[1725433060684,0.42033,2379.4,2379.3,0.00629974]
[1725433062478,0.42033,2379.5,2379.3,0.00629974]
[1725433062881,0.42033,2379.4,2379.3,0.00629974]
[1725433063286,0.42033,2379.5,2379.3,0.00629974]
[1725433063482,1.82743,2379.7,2379.3,0.00629974]
[1725433063790,0.42033,2379.4,2379.3,0.00629974]
[1725433066093,1.47117,2379.4,2379.3,0.00629974]
[1725433067186,0.42042,2379.0,2378.8,3.3058]
[1725433067390,0.42042,2379.0,2378.8,3.2078]
[1725433067580,0.42042,2379.0,2378.8,3.62824]
[1725433068887,0.42041,2379.0,2378.8,3.62824]
[1725433069891,0.4204,2379.1,2378.8,3.62824]
[1725433070189,0.4204,2379.0,2378.8,3.62824]
[1725433073193,1.6037,2379.2,2378.8,3.62824]
[1725433073395,0.42039,2379.1,2378.9,0.42042]
[1725433073983,0.42039,2379.1,2378.8,3.62823]
[1725433074488,0.79386,2379.3,2379.1,0.42038]
[1725433075991,0.79386,2379.3,2378.6,0.098]
[1725433075992,8.621,2379.2,2378.6,0.098]
[1725433076201,3.2078,2379.0,2378.0,0.7367]
[1725433076399,0.3824,2378.9,2378.1,3.2078]
[1725433076693,1.21,2378.7,2378.1,3.62835]
[1725433076995,1.21,2378.7,2378.1,3.2078]
[1725433077694,1.21,2378.7,2378.2,0.0042449]
[1725433077884,44.13044,2378.8,2378.2,0.0042449]
[1725433081296,0.78046,2378.7,2378.2,0.0042449]
[1725433081799,0.42047,2378.6,2378.2,0.0042449]
[1725433081984,0.78046,2378.7,2378.2,0.0042449]
[1725433082189,0.3573,2378.5,2378.2,0.0042449]
[1725433083195,0.81222,2378.4,2378.2,0.0042449]
[1725433083397,0.42053,2378.3,2378.2,0.0042449]
[1725433084201,0.4206,2377.9,2377.7,0.8372]
[1725433084408,0.3947,2378.2,2377.7,0.7392]
[1725433084596,0.4206,2377.9,2377.7,0.3693]
[1725433084792,1.20263,2377.8,2377.6,3.2078]
[1725433085095,0.782,2377.8,2377.6,3.2078]
[1725433086301,1.20262,2377.8,2377.6,3.2078]
[1725433086500,0.42063,2377.7,2377.6,3.2078]
[1725433087608,0.78473,2377.7,2377.6,3.2078]
[1725433089498,0.782,2377.8,2377.6,3.2078]
[1725433089703,1.20262,2377.8,2377.6,3.2078]
[1725433090405,0.42063,2377.7,2377.6,3.2078]
[1725433091000,3.96159,2377.7,2377.1,3.3058]
[1725433091199,0.42071,2377.3,2377.0,0.7774]
[1725433091896,0.7547,2377.3,2377.0,0.7774]
[1725433092102,0.42072,2377.2,2377.0,0.7774]
[1725433092289,0.7547,2377.3,2377.0,0.7774]
[1725433092599,0.42074,2377.1,2377.0,0.7774]
[1725433092988,0.42074,2377.1,2377.0,4.9846]
[1725433093192,0.42076,2377.0,2376.8,3.2078]
[1725433093390,0.42075,2377.1,2376.8,3.5755]
[1725433093801,0.42075,2377.1,2376.8,7.7827]
[1725433094101,0.42075,2377.1,2376.8,3.5755]
[1725433094697,0.42072,2377.2,2376.8,8.20348]
[1725433095005,0.42072,2377.2,2376.9,0.42077]
[1725433095188,0.42072,2377.2,2376.8,3.99628]
[1725433095387,0.42072,2377.2,2376.9,0.42077]
[1725433095594,1.17541,2377.3,2377.0,0.42075]
[1725433095789,1.17541,2377.3,2377.1,0.3925]
[1725433095995,0.42072,2377.2,2377.1,0.3925]
[1725433096901,1.17541,2377.3,2377.1,0.3925]
[1725433097103,0.42072,2377.2,2377.1,0.3925]
[1725433097796,0.42072,2377.2,2376.9,0.42076]
[1725433097997,0.42072,2377.2,2376.9,0.78066]
[1725433098195,2.91,2377.2,2376.8,3.5755]
[1725433098394,1.80649,2377.3,2376.8,3.2078]
[1725433098596,0.42084,2376.5,2376.4,0.098]
[1725433098810,0.42086,2376.5,2376.1,3.2078]
[1725433099004,0.5188,2376.8,2376.4,3.2078]
[1725433099197,3.93,2376.9,2376.4,3.2078]
[1725433099198,3.817,2376.9,2376.5,0.729]
[1725433099400,4.23778,2376.9,2376.5,0.729]
[1725433099600,0.42079,2376.8,2376.5,0.729]
[1725433099804,3.817,2376.9,2376.5,0.729]
[1725433100114,0.42082,2376.7,2376.4,3.2078]
[1725433100601,0.3841,2376.6,2376.4,3.2078]
[1725433102198,2.91,2376.5,2376.4,1.4309]
[1725433102399,1.05216,2376.4,2375.8,0.098]
[1725433102593,0.42098,2375.8,2375.6,3.2078]
[1725433103805,0.42727313,2375.9,2375.6,3.2078]
[1725433104999,0.42097,2375.8,2375.6,3.2078]
[1725433105601,0.42727313,2375.9,2375.6,3.2078]
[1725433106108,0.42727313,2375.9,2375.7,0.3925]
[1725433106309,0.00631313,2375.9,2375.7,0.3925]
[1725433106499,0.42727313,2375.9,2375.7,0.3925]
[1725433108009,0.00631313,2375.9,2375.8,0.42097]
[1725433109312,0.00631313,2375.9,2375.8,10.62977]
[1725433109511,2.91,2376.0,2375.6,3.2078]
[1725433109706,0.42101,2375.6,2375.4,0.376]
[1725433111427,0.42731313,2375.7,2375.4,0.376]
[1725433112116,0.00631313,2375.7,2375.4,0.376]
[1725433112318,0.42101,2375.6,2375.4,0.376]
[1725433113312,0.42102,2375.5,2375.4,0.376]
[1725433113921,0.42104,2375.4,2375.3,0.00631313]
[1725433114119,0.42104,2375.4,2374.8,0.098]
[1725433114120,4.9495,2375.4,2374.8,0.856]
[1725433114323,2.91,2374.9,2374.8,0.758]
[1725433114721,3.3311,2375.1,2374.8,0.758]
[1725433114918,2.91,2375.1,2374.8,0.758]
[1725433115125,0.42115,2374.8,2374.5,3.2078]
[1725433115628,2.91,2374.7,2374.5,3.2078]
[1725433115830,3.33118,2374.7,2374.5,3.2078]
[1725433116126,3.33118,2374.7,2374.3,0.758]
[1725433116127,2.91,2374.7,2374.3,0.758]
[1725433116323,0.42117,2374.7,2374.3,0.758]
[1725433116629,44.0078,2374.8,2374.3,0.758]
[1725433117128,7.1481,2375.1,2374.4,3.62901]
[1725433117513,40.8,2375.0,2374.4,3.62901]
[1725433117924,40.8,2375.0,2374.5,0.4212]
[1725433118228,7.1481,2375.1,2374.4,3.62901]
[1725433118728,47.9481,2375.1,2374.4,3.62901]
[1725433119127,7.1481,2375.1,2374.4,3.62901]
[1725433119329,6.727,2375.1,2374.5,0.4212]
[1725433119738,7.1481,2375.1,2374.5,0.4212]
[1725433119935,0.42111,2375.0,2374.5,0.4212]
[1725433120826,0.42111,2375.0,2374.4,3.62901]
[1725433121030,0.42117,2374.7,2374.4,3.2078]
[1725433121439,2.91,2374.8,2374.4,3.2078]
[1725433121636,6.727,2375.1,2374.4,3.2078]
[1725433121936,3.817,2375.1,2374.4,6.1178]
[1725433122125,6.63687,2375.3,2374.8,0.42114]
[1725433122331,6.1178,2375.3,2374.9,0.7656]
[1725433122528,0.42108,2375.2,2374.9,0.7656]
[1725433123329,6.53887,2375.3,2374.9,0.7656]
[1725433123534,0.42108,2375.2,2374.9,0.7656]
[1725433124842,0.42109,2375.1,2374.9,0.7656]
[1725433125044,0.42109,2375.2,2374.9,0.7656]
[1725433125546,0.4211,2375.1,2374.9,0.7656]
[1725433125844,0.42109,2375.2,2374.9,0.7656]
[1725433126733,6.53887,2375.3,2374.9,1.18673]
[1725433126934,0.42108,2375.2,2374.9,0.7656]
[1725433127743,2.91,2375.3,2374.9,1.18673]
[1725433127939,0.42108,2375.2,2374.9,0.7656]
[1725433128338,0.4211,2375.1,2374.9,0.7656]
[1725433129544,0.42111,2375.0,2374.7,3.2078]
[1725433129842,0.42114,2374.9,2374.7,3.2078]
[1725433130435,0.3556,2375.2,2374.7,3.2078]
[1725433130641,0.42115,2374.8,2374.5,1.57259]
[1725433130836,2.91,2374.8,2374.5,0.7614]
[1725433131138,0.80807,2374.7,2374.5,0.7614]
[1725433131342,0.80807,2374.7,2374.3,0.42123]
[1725433131642,0.42143,2373.3,2372.8,3.62929]
[1725433131951,2.91,2373.2,2372.8,3.2078]
[1725433132140,0.42153,2372.7,2372.2,0.4216]
[1725433132450,0.00631313,2373.3,2371.8,5.53859351]
[1725433132451,2.91,2373.0,2372.3,0.42159]
[1725433132649,2.91,2373.0,2372.2,3.6294]
[1725433132942,2.91,2373.0,2372.3,0.42159]
[1725433132943,3.33148,2373.0,2372.3,0.42159]
[1725433133141,2.91,2373.0,2372.2,3.2078]
[1725433133346,0.42148,2372.9,2372.3,0.42159]
[1725433133739,0.4215,2372.8,2372.2,3.6294]
[1725433134544,0.42149,2372.9,2372.3,0.42158]
[1725433134743,0.42148,2373.0,2372.4,0.42157]
[1725433134945,44.0078,2373.1,2372.7,0.42152]
[1725433135249,44.0078,2373.1,2372.5,3.2078]
[1725433135449,0.42773313,2373.3,2372.8,0.42149]
[1725433135956,40.8,2373.2,2372.8,0.42149]
[1725433136248,0.00631313,2373.3,2372.2,3.2078]
[1725433136452,0.52573313,2373.3,2372.8,0.42148]
[1725433136646,41.22773313,2373.3,2372.8,0.42148]
[1725433136840,0.42773313,2373.3,2372.9,0.42148]
[1725433137042,0.42773313,2373.3,2372.8,0.42149]
[1725433137246,0.42773313,2373.3,2372.9,0.42148]
[1725433137641,0.00631313,2373.3,2372.6,0.38]
[1725433137947,0.00631313,2373.3,2373.0,0.42146]
[1725433138350,0.42773313,2373.3,2372.9,0.42147]
[1725433138746,0.00631313,2373.3,2372.8,3.2078]
[1725433138948,0.42773313,2373.3,2372.9,0.42147]
[1725433139252,0.42143,2373.2,2372.8,3.6293]
[1725433139455,0.42143,2373.2,2372.8,0.4215]
[1725433139750,0.42145,2373.1,2372.7,0.42151]
[1725433139950,1.7183,2372.9,2372.6,0.80153]
[1725433140260,2.13979,2372.9,2372.6,0.80153]
[1725433140652,3.65809,2372.9,2372.6,0.80153]
[1725433141060,3.65809,2372.9,2372.5,3.2078]
[1725433141061,3.2366,2372.9,2372.5,3.2078]
[1725433141356,0.42154,2372.6,2372.5,3.2078]
[1725433141548,0.42154,2372.6,2372.2,0.4216]
[1725433141945,1.47,2372.8,2372.1,0.3628]
[1725433142145,1.8915,2372.8,2372.2,3.2078]
[1725433142346,1.8915,2372.8,2372.5,0.42155]
[1725433142648,0.4214,2372.7,2372.5,0.42155]
[1725433142844,0.4214,2372.7,2372.6,4.63594]
[1725433143050,1.47,2372.8,2372.7,0.42152]
[1725433143353,1.47,2372.8,2372.7,4.63592]
[1725433143855,1.7183,2372.9,2372.7,4.63592]
[1725433143856,1.7183,2372.9,2372.8,1.47526]
[1725433144161,1.7183,2372.9,2372.8,5.0022]
[1725433144459,1.7183,2372.9,2372.8,11.0022]
[1725433144845,1.5472,2372.9,2372.8,15.26376]
[1725433145143,0.9547,2372.9,2372.8,15.26376]
[1725433145553,1.3575,2373.1,2373.0,0.42147]
[1725433145946,1.3575,2373.1,2373.0,10.63507]
[1725433146154,0.44005,2373.1,2373.0,11.68874]
[1725433146452,0.00631313,2373.3,2373.2,0.42143]
[1725433146658,0.00631313,2373.3,2373.2,4.2136]
[1725433146846,0.00631313,2373.3,2373.2,10.63503]
[1725433147454,0.00631313,2373.3,2373.1,3.2078]
[1725433147455,2.82031313,2373.3,2373.1,3.2078]
[1725433147649,2.82031313,2373.3,2373.2,0.42143]
[1725433147857,2.82031313,2373.3,2373.2,4.63503]
[1725433148154,2.82031313,2373.3,2373.2,10.63503]
[1725433149047,2.82031313,2373.3,2373.2,4.63503]
[1725433149948,2.82031313,2373.3,2373.2,10.63503]
[1725433150145,2.82031313,2373.3,2373.2,4.63503]
[1725433150343,2.82031313,2373.3,2373.2,10.63503]
[1725433150550,2.82031313,2373.3,2372.7,3.2078]
[1725433150756,0.3622,2373.2,2372.9,0.42147]
[1725433151153,0.3622,2373.2,2372.9,3.2078]
[1725433151353,0.3622,2373.2,2373.0,0.42146]
[1725433152049,0.3622,2373.2,2372.6,3.2078]
[1725433152252,0.3371,2373.1,2372.6,3.2078]
[1725433152852,0.3371,2373.1,2373.0,0.42146]
[1725433153055,0.3371,2373.1,2372.8,0.42149]
[1725433153258,0.3371,2373.1,2372.6,4.26165]
[1725433153450,0.3371,2373.0,2372.6,4.26165]
[1725433153759,0.3371,2373.0,2372.9,0.42148]
[1725433153950,0.5057,2372.9,2372.7,4.2144]
[1725433154146,0.5057,2372.9,2372.8,0.4215]
[1725433154454,0.5057,2372.9,2372.8,4.6359]
[1725433154761,0.5057,2372.9,2372.8,10.6359]
[1725433155152,0.5057,2372.9,2372.8,13.8437]
[1725433155659,0.7631,2372.9,2372.8,7.8437]
[1725433157862,0.7631,2372.9,2372.8,15.95122]
[1725433158847,0.7631,2372.9,2372.8,15.26526]
[1725433159652,0.7631,2372.9,2372.8,7.4222]
[1725433159857,1.1246,2372.9,2372.8,3.6293]
[1725433160062,1.1246,2372.9,2372.8,0.4215]
[1725433162553,1.1246,2372.9,2372.7,0.42151]
[1725433162861,1.1246,2372.9,2372.8,0.4215]
[1725433163364,1.1246,2372.9,2372.7,0.42151]
[1725433163569,1.1246,2372.9,2372.8,0.4215]
[1725433164358,1.1246,2372.9,2372.8,7.8437]
[1725433164753,0.7631,2372.9,2372.8,7.8437]
[1725433165167,0.7631,2372.9,2372.8,4.6359]
[1725433165562,0.7631,2372.9,2372.8,7.8437]
[1725433166459,0.7631,2372.9,2372.5,3.2078]
[1725433166660,0.3897,2372.8,2372.6,0.42153]
[1725433166858,1.7073,2372.7,2372.5,3.62935]
[1725433167261,1.7073,2372.7,2372.5,3.2078]
[1725433167761,1.7073,2372.7,2372.6,0.42154]
[1725433169256,1.7073,2372.7,2372.5,3.62935]
[1725433169464,1.7073,2372.7,2372.6,0.42154]
[1725433170663,1.7073,2372.7,2372.5,3.62934]
[1725433170862,1.7073,2372.7,2372.6,0.42154]
[1725433171166,2.9142,2372.7,2372.6,0.42154]
[1725433172062,2.8774,2372.7,2372.6,11.68979]
[1725433172367,2.8774,2372.7,2372.6,12.05529]
[1725433173265,2.01644,2372.7,2372.6,13.10914]
[1725433173464,0.7631,2372.9,2372.8,1.47526]
[1725433173769,0.7631,2372.9,2372.8,3.6293]
[1725433173968,0.7631,2372.9,2372.8,7.8437]
[1725433174359,0.7631,2372.9,2372.8,13.8437]
[1725433174665,0.7631,2372.9,2372.8,4.6359]
[1725433174868,0.7631,2372.9,2372.8,13.8437]
[1725433175065,0.7631,2372.9,2372.8,7.8437]
[1725433175273,1.1002,2372.9,2372.8,7.8437]
[1725433176162,1.4373,2372.9,2372.8,7.8437]
[1725433176763,1.4373,2372.9,2372.8,13.8437]
[1725433177273,3.2804,2372.9,2372.8,7.8437]
[1725433178472,3.2804,2372.9,2372.8,3.2078]
[1725433178774,3.2804,2372.9,2372.8,3.6293]
[1725433178972,3.6619,2372.9,2372.8,3.6293]
[1725433180473,3.6619,2372.9,2372.8,7.8437]
[1725433180863,3.6619,2372.9,2372.8,3.6293]
[1725433182276,3.6619,2372.9,2372.8,3.2078]
[1725433182468,4.08338,2372.9,2372.8,3.2078]
[1725433186384,3.6619,2372.9,2372.8,3.6293]
[1725433187483,4.08338,2372.9,2372.8,3.2078]
[1725433187879,0.42154,2372.6,2372.4,0.42157]
[1725433188087,0.79327,2372.5,2372.2,0.4216]
[1725433188380,0.3741,2372.4,2372.2,0.4216]
[1725433189775,0.7634,2372.3,2372.2,0.4216]
[1725433189983,0.7634,2372.3,2372.1,3.2078]
[1725433190284,1.1397,2372.3,2372.1,3.62942]
[1725433190678,1.1397,2372.3,2372.2,0.42161]
[1725433190879,1.5718,2372.2,2372.1,3.62941]
[1725433191275,1.5718,2372.2,2372.1,7.84461]
[1725433195894,1.5718,2372.2,2372.1,13.84461]
[1725433196388,1.5718,2372.2,2372.1,7.84461]
[1725433196584,1.5718,2372.2,2372.1,13.84461]
[1725433196986,1.5718,2372.2,2372.1,14.89868]
[1725433197485,0.7634,2372.3,2372.2,1.47564]
[1725433197686,0.7634,2372.3,2372.2,5.73484]
[1725433197892,1.4378,2372.3,2372.2,11.73484]
[1725433199191,0.5454,2372.9,2372.2,6.9540229]
[1725433199392,0.3334,2372.9,2372.8,3.6293]
[1725433199586,0.3334,2372.9,2372.8,3.2078]
[1725433199894,0.3334,2372.9,2372.8,7.4222]
[1725433200190,0.3334,2372.9,2372.6,0.42153]
[1725433200388,0.3334,2372.9,2372.5,3.2078]
[1725433200891,2.6635,2372.8,2372.5,3.2078]
[1725433201185,2.6635,2372.8,2372.6,0.42154]
[1725433201389,2.6635,2372.8,2372.5,3.2078]
[1725433201690,2.6635,2372.8,2372.5,3.62934]
[1725433201890,0.3905,2372.7,2372.6,0.42152]
[1725433202189,0.3905,2372.7,2372.5,3.2078]
[1725433202392,0.3905,2372.7,2372.6,0.42154]
[1725433202585,2.6635,2372.8,2372.7,0.42152]
[1725433202780,2.6635,2372.8,2372.6,0.42153]
[1725433203587,2.6635,2372.8,2372.5,3.62934]
[1725433204091,2.6635,2372.8,2372.6,0.42153]
[1725433204695,2.6635,2372.8,2372.5,3.2078]
[1725433204990,1.5248,2372.7,2372.5,3.62935]
[1725433205488,1.94632,2372.7,2372.4,0.42157]
[1725433206481,1.94632,2372.7,2372.2,3.2078]
[1725433206482,0.42154,2372.6,2372.2,3.2078]
[1725433206687,0.774,2372.5,2372.2,3.2078]
[1725433206893,1.1078,2372.5,2372.3,0.42158]
[1725433207200,1.1078,2372.5,2372.4,0.42157]
[1725433207499,0.3338,2372.5,2372.4,0.42157]
[1725433207695,0.3338,2372.5,2372.4,11.69071]
[1725433208798,0.3338,2372.5,2372.4,10.63677]
[1725433208999,0.3338,2372.5,2372.4,4.63677]
[1725433209192,0.3338,2372.5,2372.4,10.63677]
[1725433209388,0.3338,2372.5,2372.4,0.42157]
[1725433212591,0.3338,2372.5,2372.4,11.69071]
[1725433212788,1.5248,2372.7,2372.6,1.47539]
[1725433212994,1.5248,2372.7,2372.6,7.59319]
[1725433213197,1.5248,2372.7,2372.6,18.86144]
[1725433213198,0.54696,2372.7,2372.6,18.86144]
[1725433213405,2.3264,2372.8,2372.7,1.47533]
[1725433213598,2.3264,2372.8,2372.7,5.68973]
[1725433213810,2.3264,2372.8,2372.7,6.74354]
[1725433214491,2.3264,2372.8,2372.7,12.74354]
[1725433214698,2.6635,2372.8,2372.7,12.74354]
[1725433214901,2.6635,2372.8,2372.7,6.74354]
[1725433215295,2.6635,2372.8,2372.7,5.68973]
[1725433220100,2.6635,2372.8,2372.7,12.74354]
[1725433222106,0.3808,2373.0,2372.9,2.52892]
[1725433222410,0.37101313,2373.3,2373.2,4.38501]
[1725433222709,0.37101313,2373.3,2373.2,7.59281]
[1725433222902,0.37101313,2373.3,2373.2,11.80641]
[1725433223706,0.70801313,2373.3,2373.2,11.80641]
[1725433224009,1.29271313,2373.3,2373.2,11.80641]
[1725433224615,0.3675,2373.7,2373.2,11.80641]
[1725433224616,0.3675,2373.7,2373.6,0.42136]
[1725433224909,0.3675,2373.7,2373.6,3.62916]
[1725433225111,0.3675,2373.7,2373.6,3.2078]
[1725433225315,0.42139,2373.5,2373.1,3.62924]
[1725433225505,0.42142,2373.3,2372.8,10.2198]
[1725433225817,0.3624,2373.2,2373.0,0.42147]
[1725433226210,0.3624,2373.2,2373.0,0.42146]
[1725433226401,4.8878,2373.1,2372.8,7.31611313]
[1725433226606,4.8878,2373.1,2372.8,3.21411313]
[1725433226607,0.6742,2373.1,2372.8,3.21411313]
[1725433226906,4.8886,2373.1,2372.8,0.00631313]
[1725433227107,8.17807,2373.0,2372.1,3.2078]
[1725433227304,0.42151,2372.8,2372.1,3.2078]
[1725433227501,2.91,2372.9,2372.1,3.2078]
[1725433227705,0.42153,2372.7,2372.1,3.2078]
[1725433227917,0.42153,2372.7,2372.1,3.62942]
[1725433228215,0.42149,2372.9,2372.3,2.91]
[1725433228510,3.882,2373.1,2372.3,2.91]
[1725433228813,3.882,2373.1,2372.3,3.33159]
[1725433228814,0.42149,2372.9,2372.3,3.33159]
[1725433229014,0.42149,2372.9,2372.3,2.91]
[1725433229313,0.42149,2372.9,2372.3,3.33159]
[1725433229707,4.30346,2373.1,2372.3,2.91]
[1725433229923,0.42147,2373.0,2372.4,3.62936]
[1725433230111,0.42147,2373.0,2372.5,0.42155]
[1725433230112,0.751,2373.0,2372.5,0.42155]
[1725433230313,0.751,2373.0,2372.5,2.91]
[1725433230314,0.3814,2372.9,2372.5,2.91]
[1725433230607,0.3814,2372.9,2372.4,0.42156]
[1725433230918,0.3814,2372.9,2372.6,0.42154]
[1725433231608,0.3814,2372.9,2372.5,2.91]
[1725433231811,0.3814,2372.9,2372.7,0.42151]
[1725433232010,0.3814,2372.9,2372.6,0.42153]
[1725433232206,0.3814,2372.9,2372.7,0.42152]
[1725433232922,0.3814,2372.9,2372.6,0.42153]
[1725433233809,0.3814,2372.9,2372.5,3.33155]
[1725433234414,0.3814,2372.9,2372.6,0.42154]
[1725433235011,0.3814,2372.9,2372.7,0.42152]
[1725433235413,0.3669,2373.0,2372.7,7.1244]
[1725433235717,0.3669,2373.0,2372.9,0.42148]
[1725433236217,0.6742,2373.1,2373.0,0.42147]
[1725433236517,0.6742,2373.1,2373.0,7.84367]
[1725433236724,0.6742,2373.1,2373.0,8.59257]
[1725433237908,0.6742,2373.1,2373.0,15.64624]
[1725433238614,0.00631313,2373.3,2373.2,0.42143]
[1725433238814,0.00631313,2373.3,2373.2,4.38501]
[1725433238815,3.13e-06,2373.3,2373.2,4.38501]
[1725433239123,3.13e-06,2373.3,2373.2,14.59861]
[1725433239323,0.212,2373.8,2373.7,0.42134]
[1725433239520,0.42122,2374.4,2373.7,6.1178]
[1725433239822,0.42122,2374.5,2374.0,0.42128]
[1725433240115,0.42122,2374.4,2374.0,0.42128]
[1725433240418,0.42122,2374.4,2374.0,0.42759313]
[1725433240419,0.6738,2374.3,2374.0,0.42759313]
[1725433241116,0.6738,2374.3,2374.1,0.42127]
[1725433241312,0.6738,2374.3,2374.0,0.42759313]
[1725433241814,0.6738,2374.3,2374.0,0.00631313]
[1725433242013,0.42126,2374.2,2374.0,0.00631313]
[1725433242309,0.42132,2373.9,2373.4,0.42138]
[1725433242513,0.3637,2373.8,2373.3,6.53921]
[1725433242718,0.78503,2373.8,2373.3,6.1178]
[1725433242914,0.78503,2373.8,2373.4,0.42139]
[1725433243114,0.42134,2373.7,2373.3,6.5392]
[1725433243610,0.3674,2373.6,2373.3,6.5392]
[1725433244017,0.3674,2373.6,2373.4,0.42138]
[1725433244212,0.3674,2373.6,2373.5,0.42138]
[1725433246317,0.3674,2373.6,2373.4,0.42138]
[1725433246519,0.3674,2373.6,2373.5,0.42138]
[1725433247524,0.3674,2373.6,2373.3,6.1178]
[1725433247826,0.3674,2373.6,2373.4,0.42138]
[1725433248825,0.3674,2373.6,2373.5,0.42138]
[1725433251227,0.3855,2373.7,2373.6,0.42136]
[1725433252926,0.3855,2373.7,2373.3,3.3013]
[1725433253130,0.3855,2373.7,2373.5,0.42136]
[1725433253317,0.3855,2373.7,2372.9,3.2078]
[1725433253318,6.3855,2373.7,2372.9,3.2078]
[1725433253513,0.42146,2373.1,2372.7,0.42151]
[1725433253722,0.7369,2373.0,2372.7,0.42151]
[1725433253918,1.132,2373.0,2372.6,3.2078]
[1725433254126,1.55347,2373.0,2372.7,0.42151]
[1725433254723,1.132,2373.0,2372.8,0.4215]
[1725433255124,1.132,2373.0,2372.7,0.42151]
[1725433255325,1.132,2373.0,2372.8,0.4215]
[1725433255629,1.55347,2373.0,2372.7,0.42151]
[1725433255834,1.132,2373.0,2372.7,0.42151]
[1725433256329,1.132,2373.0,2372.8,0.4215]
[1725433257135,0.3371,2372.9,2372.8,0.4215]
[1725433260235,0.3371,2372.9,2372.5,2.91]
[1725433260422,0.3371,2372.9,2372.7,0.42152]
[1725433260423,1.1529,2372.8,2372.7,0.42152]
[1725433260732,1.1529,2372.8,2372.6,0.42153]
[1725433260938,1.1529,2372.8,2372.5,0.42154]
[1725433261235,0.42152,2372.7,2372.3,3.33158]
[1725433261421,1.1529,2372.8,2372.2,3.2078]
[1725433261627,0.42155,2372.6,2372.2,3.6294]
[1725433261825,0.42157,2372.5,2372.2,3.2078]
[1725433262028,0.42154,2372.6,2372.2,3.2078]
[1725433262533,3.2078,2372.7,2372.2,3.2078]
[1725433262720,3.2078,2372.7,2372.3,0.42158]
[1725433262929,3.2078,2372.7,2372.3,0.42159]
[1725433263124,3.2078,2372.7,2372.2,3.6294]
[1725433263423,3.62933,2372.7,2372.2,3.6294]
[1725433264032,3.62933,2372.7,2372.3,0.42159]
[1725433264237,3.62933,2372.7,2372.2,3.6294]
[1725433264925,0.42154,2372.6,2372.2,3.6294]
[1725433265524,3.2078,2372.7,2372.4,0.42157]
[1725433265729,3.2078,2372.7,2372.3,0.42158]
[1725433265931,3.62933,2372.7,2372.3,0.42159]
[1725433266135,3.2078,2372.7,2372.3,0.42158]
[1725433266526,3.62932,2372.7,2372.3,0.42158]
[1725433267124,3.2078,2372.7,2372.2,3.2078]
[1725433267335,0.42155,2372.6,2372.2,3.2078]
[1725433267739,3.2078,2372.7,2372.1,0.42162]
[1725433267740,0.42157,2372.5,2372.1,0.42162]
[1725433268525,3.2078,2372.7,2372.0,0.42163]
[1725433268526,0.42158,2372.4,2372.0,0.42163]
[1725433268731,1.54559,2372.3,2371.9,3.33165]
[1725433268933,1.54559,2372.3,2372.0,0.42164]
[1725433269135,0.3372,2372.2,2372.0,0.42164]
[1725433269334,0.3372,2372.2,2371.9,3.33165]
[1725433269637,1.05407,2372.1,2371.5,3.2078]
[1725433269838,0.42174,2371.5,2371.0,3.6296]
[1725433270140,0.42174,2371.5,2371.1,0.4218]
[1725433270141,0.7297,2371.4,2371.1,0.4218]
[1725433270332,0.7297,2371.4,2371.0,3.62961]
[1725433270533,0.7297,2371.4,2370.7,0.388]
[1725433270534,0.42177,2371.3,2370.7,0.388]
[1725433270829,3.9375,2371.4,2370.5,2.91]
[1725433270830,0.3373,2371.2,2370.5,2.91]
[1725433271032,0.75909,2371.2,2370.6,0.42188]
[1725433271235,0.42181,2371.1,2370.5,3.3319]
[1725433271625,0.42181,2371.1,2370.5,2.91]
[1725433271836,0.42181,2371.1,2370.5,3.33191]
[1725433272030,0.75909,2371.2,2370.5,3.33191]
[1725433272231,0.4218,2371.1,2370.5,2.91]
[1725433272435,0.4218,2371.1,2370.5,3.33191]
[1725433272639,0.75909,2371.2,2370.6,0.42189]
[1725433273228,0.3373,2371.2,2370.7,0.42187]